fUST/lending_fUST_20250613
["ID","MTS","AMOUNT","RATE_DAILY","PERIOD"]
[365532030,1749767447378,-693.92397178,0.000237,4]
[365532031,1749767447387,-693.92397178,0.000237,4]
[365532032,1749767447396,-693.92397178,0.000237,4]
[365532033,1749767447407,-2160.0,0.00023702,2]
[365532034,1749767447416,-653.0,0.00023702,2]
[365532035,1749767447425,-405.0,0.00023702,2]
[365532036,1749767447436,-963.0,0.00023702,2]
[365532037,1749767447445,-9891.06663105,0.00023718,3]
[365532038,1749767447459,-229.7508257,0.00023718,3]
[365532039,1749767447472,-844.79171733,0.00023718,3]
[365532040,1749767447485,-835.15920933,0.00023718,3]
[365532041,1749767447498,-151.0,0.00023718,7]
[365532042,1749767447511,-424.26423502,0.0002372,3]
[365532043,1749767447523,-160.0,0.0002372,3]
[365532044,1749767447536,-460.0,0.00023721,4]
[365532045,1749767447548,-460.0,0.00023721,4]
[365532046,1749767447559,-551.22,0.00023721,2]
[365532047,1749767447572,-22000.29517093,0.0002376,2]
[365532048,1749767447587,-1803.43722125,0.00023762,9]
[365532049,1749767447600,-612.0,0.00023771,2]
[365532050,1749767447612,-500.0,0.00023773,2]
[365532051,1749767447625,-500.0,0.00023773,2]
[365532052,1749767447637,-500.0,0.00023773,2]
[365532053,1749767447649,-500.0,0.00023773,2]
[365532054,1749767447661,-500.0,0.00023773,2]
[365532055,1749767447672,-500.0,0.00023773,2]
[365532056,1749767447684,-500.0,0.00023773,2]
[365532057,1749767447695,-502.29867434,0.00023773,2]
[365532058,1749767447710,-500.0,0.00023773,2]
[365532059,1749767447722,-347.47889072,0.00023773,2]
[365532060,1749767447734,-500.0,0.00023773,2]
[365532061,1749767447746,-500.0,0.00023773,2]
[365532062,1749767447759,-172.57270068,0.00023781,4]
[365532063,1749767447769,-693.92397178,0.00023781,4]
[365532064,1749767447779,-41723.98941284,0.00023788,2]
[365532065,1749767447791,-1261.41544633,0.00023789,20]
[365532066,1749767447802,-985.68,0.000238,2]
[365532067,1749767447814,-151.0,0.000238,10]
[365532068,1749767447827,-151.0,0.000238,5]
[365532069,1749767447840,-291209.25162062,0.000238,2]
[365532081,1749767987635,369.770007,0.00013699,2]
[365532084,1749768157108,1257.63068,0.00024931,60]
[365532105,1749768632403,-160.47140234,0.00020087,2]
[365532106,1749768632412,-666.0,0.00020135,2]
[365532107,1749768632422,-500.0,0.00020164,2]
[365532108,1749768632431,-369.770007,0.00020187,2]
[365532109,1749768632440,-4928.0398932,0.00020421,2]
[365532110,1749768632450,-172.463383,0.00020734,2]
[365532111,1749768632459,-156.587,0.00020877,2]
[365532112,1749768632469,-1200.0,0.00020888,2]
[365532113,1749768632478,-300.0,0.00020889,2]
[365532114,1749768632487,-9253.79587099,0.0002089,2]
[365532115,1749768632496,-460.0,0.00021242,4]
[365532116,1749768632506,-460.0,0.00021242,4]
[365532117,1749768632515,-460.0,0.00021242,4]
[365532118,1749768632524,-460.0,0.00021242,4]
[365532119,1749768632534,-460.0,0.00021242,4]
[365532120,1749768632543,-460.0,0.00021242,4]
[365532121,1749768632553,-2375.7,0.00021243,2]
[365532122,1749768632562,-460.0,0.00021259,2]
[365532123,1749768632571,-500.0,0.0002126,2]
[365532125,1749768632581,-460.0,0.00021482,4]
[365532127,1749768632590,-476.37,0.00021482,4]
[365532128,1749768632600,-347.25732962,0.00021482,4]
[365532130,1749768632609,-460.0,0.00021482,4]
[365532132,1749768632619,-460.0,0.00021482,4]
[365532134,1749768632628,-460.0,0.00021482,4]
[365532136,1749768632637,-559.44,0.00021482,4]
[365532138,1749768632646,-460.0,0.00021482,4]
[365532140,1749768632656,-360.0,0.00021483,4]
[365532142,1749768632665,-182.64,0.00021483,2]
[365532144,1749768632675,-460.0,0.00021483,4]
[365532146,1749768632684,-670.18,0.00021483,2]
[365532148,1749768632693,-460.0,0.00021516,4]
[365532150,1749768632703,-460.0,0.00021516,4]
[365532152,1749768632713,-460.0,0.00021516,4]
[365532154,1749768632722,-460.0,0.00021516,4]
[365532156,1749768632732,-460.0,0.00021516,4]
[365532158,1749768632742,-460.0,0.00021516,4]
[365532160,1749768632752,-460.0,0.00021533,2]
[365532162,1749768632762,-460.0,0.00021756,4]
[365532164,1749768632771,-460.0,0.00021756,4]
[365532166,1749768632780,-670.18,0.00021756,2]
[365532168,1749768632790,-476.37,0.00021756,4]
[365532170,1749768632800,-460.0,0.00021756,4]
[365532172,1749768632811,-460.0,0.00021756,4]
[365532174,1749768632821,-460.0,0.00021756,4]
[365532176,1749768632830,-559.44,0.00021756,4]
[365532178,1749768632839,-460.0,0.00021756,4]
[365532180,1749768632849,-6402.81578698,0.0002177,2]
[365532182,1749768632859,-460.0,0.0002179,4]
[365532184,1749768632868,-460.0,0.0002179,4]
[365532186,1749768632877,-460.0,0.0002179,4]
[365532187,1749768632886,-460.0,0.0002179,4]
[365532189,1749768632896,-17.86694198,0.0002179,4]
[365532192,1749768632910,-442.13305802,0.0002179,4]
[365532194,1749768632919,-198.2,0.0002179,4]
[365532196,1749768632929,-204.42756209,0.00021807,2]
[365532205,1749768633011,-255.57243791,0.00021807,2]
[365532207,1749768633021,-298.25819252,0.000219,6]
[365532218,1749768633138,-640.54084968,0.000219,6]
[365532219,1749768633148,-160.0,0.00021929,2]
[365532220,1749768633157,-500.0,0.00021999,2]
[365532222,1749768633169,-160.0,0.00021999,2]
[365532224,1749768633182,-938.79904196,0.00022003,6]
[365532225,1749768633191,-1962.20431329,0.00022029,2]
[365532227,1749768633201,-460.0,0.0002203,4]
[365532229,1749768633210,-460.0,0.0002203,4]
[365532231,1749768633220,-670.18,0.0002203,2]
[365532233,1749768633229,-476.37,0.0002203,4]
[365532235,1749768633239,-70.35136531,0.0002203,4]
[365532237,1749768633251,-254.87,0.0002203,4]
[365532306,1749768638497,-134.77863469,0.0002203,4]
[365532307,1749768638508,-460.0,0.0002203,4]
[365532308,1749768638518,-460.0,0.0002203,4]
[365532309,1749768638529,-559.44,0.0002203,4]
[365532310,1749768638539,-460.0,0.0002203,4]
[365532311,1749768638550,-240.50807119,0.00022064,4]
[365532312,1749768638563,-219.49192881,0.00022064,4]
[365532313,1749768638573,-116.7754051,0.00022064,4]
[365532314,1749768638586,-343.2245949,0.00022064,4]
[365532315,1749768638596,-460.0,0.00022064,4]
[365532316,1749768638606,-460.0,0.00022064,4]
[365532317,1749768638615,-304.0762507,0.00022064,4]
[365532318,1749768638628,-155.9237493,0.00022064,4]
[365532319,1749768638639,-460.0,0.00022081,2]
[365532320,1749768638649,-157.98410226,0.00022107,6]
[365532321,1749768638662,-780.8149397,0.00022107,6]
[365532322,1749768638673,-500.0,0.00022127,2]
[365532323,1749768638683,-500.0,0.00022188,2]
[365532324,1749768638693,-500.0,0.00022188,2]
[365532325,1749768638703,-500.0,0.00022188,2]
[365532326,1749768638713,-500.0,0.00022188,2]
[365532327,1749768638723,-255.5210435,0.00022188,2]
[365532486,1749768643620,-266.70837673,0.00022188,2]
[365532487,1749768643631,-500.0,0.00022188,2]
[365532488,1749768643640,-500.0,0.00022188,2]
[365532489,1749768643649,-500.0,0.00022188,2]
[365532490,1749768643658,-500.0,0.00022188,2]
[365532491,1749768643668,-500.0,0.00022188,2]
[365532492,1749768643677,-465.75687688,0.00022188,2]
[365532493,1749768643687,-476.225,0.00022188,2]
[365532494,1749768643696,-6921.98924,0.00022189,2]
[365532495,1749768643706,-3952.79738784,0.00022194,2]
[365532496,1749768643715,-938.79904196,0.0002221,6]
[365532497,1749768643725,-160.0,0.00022252,2]
[365532498,1749768643734,-160.0,0.00022279,2]
[365532499,1749768643744,-229.7508257,0.00022279,2]
[365532500,1749768643753,-844.79171733,0.00022279,2]
[365532501,1749768643764,-835.15920933,0.00022279,2]
[365532502,1749768643773,-160.0,0.00022279,2]
[365532503,1749768643784,-160.0,0.00022279,2]
[365532504,1749768643794,-460.0,0.00022304,4]
[365532505,1749768643803,-460.0,0.00022304,4]
[365532506,1749768643814,-670.18,0.00022304,2]
[365532507,1749768643823,-476.37,0.00022304,4]
[365532508,1749768643833,-460.0,0.00022304,4]
[365532509,1749768643843,-460.0,0.00022304,4]
[365532510,1749768643852,-460.0,0.00022304,4]
[365532511,1749768643862,-559.44,0.00022304,4]
[365532512,1749768643872,-460.0,0.00022304,4]
[365532513,1749768643882,-500.0,0.00022309,2]
[365532514,1749768643891,-594.5523253,0.00022309,2]
[365532515,1749768643901,-500.0,0.00022309,2]
[365532516,1749768643911,-500.0,0.00022309,2]
[365532517,1749768643922,-938.79904196,0.00022314,7]
[365532518,1749768643932,-2505.14550118,0.00022316,2]
[365532519,1749768643942,-500.0,0.00022333,2]
[365532520,1749768643951,-500.0,0.00022333,2]
[365532521,1749768643961,-460.0,0.00022338,4]
[365532522,1749768643971,-460.0,0.00022338,4]
[365532523,1749768643980,-460.0,0.00022338,4]
[365532524,1749768643991,-460.0,0.00022338,4]
[365532525,1749768644002,-460.0,0.00022338,4]
[365532526,1749768644012,-460.0,0.00022355,2]
[365532527,1749768644022,-500.0,0.00022356,2]
[365532528,1749768644031,-3642.80117669,0.00022386,2]
[365532529,1749768644041,-938.79904196,0.00022417,7]
[365532530,1749768644051,-500.0,0.0002243,2]
[365532531,1749768644062,-500.0,0.0002243,2]
[365532532,1749768644072,-844.79171733,0.00022456,10]
[365532533,1749768644082,-10328.86,0.00022456,10]
[365532534,1749768644093,-315.26489192,0.00022456,10]
[365532535,1749768644104,-505.23537389,0.00022465,2]
[365532536,1749768644113,-500.0,0.00022466,2]
[365532537,1749768644123,-500.0,0.00022466,2]
[365532538,1749768644132,-500.0,0.00022466,2]
[365532539,1749768644143,-500.0,0.00022466,2]
[365532540,1749768644152,-500.0,0.00022466,2]
[365532541,1749768644162,-500.0,0.00022466,2]
[365532542,1749768644172,-500.0,0.00022466,2]
[365532543,1749768644183,-500.0,0.00022466,2]
[365532544,1749768644193,-500.0,0.00022466,2]
[365532545,1749768644203,-500.0,0.00022466,2]
[365532546,1749768644214,-500.0,0.00022466,2]
[365532547,1749768644223,-500.0,0.00022466,2]
[365532548,1749768644233,-285.17403108,0.00022466,2]
[365532549,1749768644243,-500.0,0.00022466,2]
[365532550,1749768644252,-500.0,0.00022466,2]
[365532551,1749768644262,-500.0,0.00022466,2]
[365532552,1749768644271,-500.0,0.00022466,2]
[365532553,1749768644281,-500.0,0.00022466,2]
[365532554,1749768644291,-500.0,0.00022466,2]
[365532555,1749768644300,-500.0,0.00022466,2]
[365532556,1749768644310,-500.0,0.00022469,2]
[365532557,1749768644320,-500.0,0.00022469,2]
[365532558,1749768644329,-500.0,0.00022479,2]
[365532559,1749768644338,-500.0,0.00022479,2]
[365532560,1749768644348,-500.0,0.00022479,2]
[365532561,1749768644357,-500.0,0.0002252,2]
[365532562,1749768644366,-153.0545007,0.0002252,2]
[365532563,1749768644375,-938.79904196,0.00022521,7]
[365532564,1749768644385,-160.0,0.00022546,2]
[365532565,1749768644395,-424.26423502,0.00022547,2]
[365532566,1749768644404,-213.20212768,0.00022547,2]
[365532567,1749768644414,-500.0,0.00022553,2]
[365532568,1749768644423,-460.0,0.00022578,4]
[365532569,1749768644433,-460.0,0.00022578,4]
[365532570,1749768644443,-670.18,0.00022578,2]
[365532571,1749768644452,-476.37,0.00022578,4]
[365532572,1749768644461,-460.0,0.00022578,4]
[365532573,1749768644471,-460.0,0.00022578,4]
[365532574,1749768644481,-460.0,0.00022578,4]
[365532575,1749768644490,-559.44,0.00022578,4]
[365532576,1749768644499,-460.0,0.00022578,4]
[365532577,1749768644509,-500.0,0.00022588,2]
[365532578,1749768644518,-230.1251,0.00022596,7]
[365532579,1749768644528,-230.1251,0.00022596,7]
[365532580,1749768644538,-201.668718,0.00022596,7]
[365532581,1749768644548,-201.668718,0.00022596,7]
[365532582,1749768644559,-151.0,0.00022596,7]
[365532583,1749768644568,-387.984044,0.00022596,7]
[365532584,1749768644577,-387.984044,0.00022596,7]
[365532585,1749768644586,-157.92258704,0.00022608,2]
[365532586,1749768644595,-460.0,0.00022612,4]
[365532587,1749768644605,-460.0,0.00022612,4]
[365532588,1749768644615,-460.0,0.00022612,4]
[365532589,1749768644624,-460.0,0.00022612,4]
[365532590,1749768644634,-460.0,0.00022612,4]
[365532591,1749768644643,-526.11003283,0.00022624,7]
[365532606,1749768646212,-424.26423502,0.00022546,2]
[365532607,1749768646222,-412.68900913,0.00022624,7]
[365532608,1749768646232,-210.09416332,0.00022629,2]
[365532609,1749768646339,-249.90583668,0.00022629,2]
[365532610,1749768646350,-839.13023798,0.00022675,2]
[365532611,1749768646360,-3642.80117668,0.00022715,2]
[365532612,1749768646370,-420.0,0.00022725,2]
[365532613,1749768646379,-938.79904196,0.00022728,7]
[365532614,1749768646390,-615.81,0.00022789,3]
[365532616,1749768646399,-307.9,0.00022789,3]
[365532618,1749768646410,-153.95,0.00022789,3]
[365532619,1749768646420,-461.9,0.00022789,3]
[365532620,1749768646430,-8607.38,0.00022789,10]
[365532621,1749768646441,-5000.0,0.00022799,2]
[365532622,1749768646451,-151.0,0.00022799,2]
[365532623,1749768646461,-1688.0,0.00022799,2]
[365532624,1749768646470,-151.0,0.00022799,2]
[365532625,1749768646480,-151.0,0.00022799,2]
[365532626,1749768646494,-500.0,0.00022799,2]
[365532627,1749768646504,-151.0,0.00022799,2]
[365532628,1749768646515,-500.0,0.00022799,2]
[365532629,1749768646525,-151.0,0.00022799,2]
[365532630,1749768646535,-151.0,0.00022799,2]
[365532631,1749768646544,-500.0,0.00022799,2]
[365532632,1749768646554,-151.0,0.00022799,2]
[365532633,1749768646564,-500.0,0.00022799,2]
[365532634,1749768646574,-226.76390347,0.00022799,2]
[365532635,1749768646583,-500.0,0.00022799,2]
[365532636,1749768646593,-1200.0,0.00022799,2]
[365532637,1749768646603,-500.0,0.00022799,2]
[365532638,1749768646612,-1200.0,0.00022799,2]
[365532639,1749768646622,-500.0,0.00022799,2]
[365532640,1749768646631,-1200.0,0.00022799,2]
[365532641,1749768646641,-500.0,0.00022799,2]
[365532642,1749768646651,-1200.0,0.00022799,2]
[365532643,1749768646661,-500.0,0.00022799,2]
[365532644,1749768646670,-1200.0,0.00022799,2]
[365532645,1749768646680,-500.0,0.00022799,2]
[365532646,1749768646690,-1200.0,0.00022799,2]
[365532647,1749768646700,-500.0,0.00022799,2]
[365532648,1749768646710,-500.0,0.00022799,2]
[365532649,1749768646719,-300.0,0.00022799,2]
[365532650,1749768646729,-500.0,0.00022799,2]
[365532651,1749768646739,-500.0,0.00022799,2]
[365532652,1749768646748,-500.0,0.00022799,2]
[365532653,1749768646758,-300.0,0.00022799,2]
[365532654,1749768646767,-204.71631625,0.00022799,2]
[365532655,1749768646777,-207.4,0.00022799,2]
[365532656,1749768646787,-668.01325644,0.00022831,2]
[365532657,1749768646796,-938.79904196,0.00022831,8]
[365532658,1749768646806,-380.0,0.00022832,2]
[365532659,1749768646816,-460.0,0.00022852,4]
[365532660,1749768646826,-460.0,0.00022852,4]
[365532661,1749768646836,-670.18,0.00022852,2]
[365532662,1749768646845,-476.37,0.00022852,4]
[365532663,1749768646855,-460.0,0.00022852,4]
[365532664,1749768646864,-460.0,0.00022852,4]
[365532665,1749768646874,-460.0,0.00022852,4]
[365532666,1749768646884,-559.44,0.00022852,4]
[365532667,1749768646894,-460.0,0.00022852,4]
[365532668,1749768646904,-1750.456,0.00022854,2]
[365532669,1749768646913,-571.77089163,0.00022857,2]
[365532670,1749768646923,-1000.0,0.00022881,2]
[365532671,1749768646934,-460.0,0.00022886,4]
[365532672,1749768646945,-460.0,0.00022886,4]
[365532673,1749768646955,-460.0,0.00022886,4]
[365532674,1749768646965,-460.0,0.00022886,4]
[365532675,1749768646975,-460.0,0.00022886,4]
[365532676,1749768646984,-460.0,0.00022903,2]
[365532677,1749768646994,-157.60310324,0.00022909,2]
[365532678,1749768647004,-938.79904196,0.00022934,8]
[365532679,1749768647014,-500.0,0.00022978,2]
[365532680,1749768647024,-365.1378539,0.00022986,2]
[365532681,1749768647033,-729.9949474,0.00022986,2]
[365532682,1749768647043,-365.1378539,0.00022986,2]
[365532683,1749768647053,-364.7167133,0.00022986,2]
[365532684,1749768647063,-1000.0,0.00023017,2]
[365532685,1749768647073,-297.29849381,0.00023027,2]
[365532686,1749768647083,-500.0,0.00023027,2]
[365532687,1749768647099,-694.76318022,0.00023027,2]
[365532688,1749768647108,-938.79904196,0.00023038,8]
[365532689,1749768647118,-3642.80117668,0.00023043,2]
[365532690,1749768647128,-172.0,0.00023044,2]
[365532691,1749768647139,-500.0,0.00023068,2]
[365532692,1749768647149,-460.0,0.00023126,4]
[365532693,1749768647158,-460.0,0.00023126,4]
[365532694,1749768647168,-670.18,0.00023126,2]
[365532695,1749768647179,-476.37,0.00023126,4]
[365532696,1749768647189,-170.8,0.00023126,4]
[365532697,1749768647198,-460.0,0.00023126,4]
[365532698,1749768647208,-460.0,0.00023126,4]
[365532699,1749768647217,-559.44,0.00023126,4]
[365532700,1749768647227,-195.1,0.00023126,4]
[365532701,1749768647237,-447.3515898,0.00023135,2]
[365532702,1749768647246,-938.79904196,0.00023141,8]
[365532703,1749768647256,-230.1251,0.00023143,7]
[365532704,1749768647266,-230.1251,0.00023143,7]
[365532705,1749768647275,-201.668718,0.00023143,7]
[365532706,1749768647285,-201.668718,0.00023143,7]
[365532707,1749768647294,-151.0,0.00023143,7]
[365532708,1749768647304,-387.984044,0.00023143,7]
[365532709,1749768647315,-387.984044,0.00023143,7]
[365532710,1749768647324,-206.1849086,0.00023151,2]
[365532711,1749768647334,-460.0,0.0002316,4]
[365532712,1749768647343,-460.0,0.0002316,4]
[365532713,1749768647353,-460.0,0.0002316,4]
[365532714,1749768647363,-460.0,0.0002316,4]
[365532715,1749768647372,-460.0,0.0002316,4]
[365532716,1749768647382,-509.265796,0.00023173,7]
[365532717,1749768647392,-509.265796,0.00023173,7]
[365532718,1749768647402,-151.0,0.00023173,7]
[365532719,1749768647412,-4751.39,0.00023174,2]
[365532720,1749768647422,-460.0,0.00023177,2]
[365532721,1749768647432,-938.79904196,0.00023245,8]
[365532722,1749768647442,-152.006554,0.00023301,7]
[365532723,1749768647452,-151.0,0.00023301,7]
[365532724,1749768647462,-151.0,0.00023301,7]
[365532725,1749768647472,-938.79904196,0.00023348,9]
[365532726,1749768647482,-160.0,0.00023369,2]
[365532727,1749768647491,-3642.80117668,0.00023372,2]
[365532728,1749768647501,-460.0,0.000234,4]
[365532729,1749768647510,-460.0,0.000234,4]
[365532730,1749768647520,-670.18,0.000234,2]
[365532731,1749768647530,-476.37,0.000234,4]
[365532732,1749768647539,-460.0,0.000234,4]
[365532733,1749768647549,-460.0,0.000234,4]
[365532734,1749768647560,-559.44,0.000234,4]
[365532735,1749768647570,-230.1251,0.00023417,7]
[365532736,1749768647579,-230.1251,0.00023417,7]
[365532737,1749768647588,-201.668718,0.00023417,7]
[365532738,1749768647599,-201.668718,0.00023417,7]
[365532739,1749768647608,-151.0,0.00023417,7]
[365532740,1749768647618,-387.984044,0.00023417,7]
[365532741,1749768647628,-387.984044,0.00023417,7]
[365532742,1749768647639,-844.79171733,0.0002342,7]
[365532743,1749768647648,-500.0,0.00023429,2]
[365532744,1749768647658,-460.0,0.00023434,4]
[365532745,1749768647668,-460.0,0.00023434,4]
[365532746,1749768647680,-460.0,0.00023434,4]
[365532747,1749768647691,-460.0,0.00023434,4]
[365532748,1749768647700,-460.0,0.00023434,4]
[365532749,1749768647710,-460.0,0.00023451,2]
[365532750,1749768647719,-938.79904196,0.00023452,9]
[365532751,1749768647729,-500.0,0.00023452,2]
[365532752,1749768647738,-586.453664,0.0002352,3]
[365532753,1749768647748,-938.79904196,0.00023555,9]
[365532754,1749768647758,-509.265796,0.000236,7]
[365532755,1749768647767,-509.265796,0.000236,7]
[365532756,1749768647777,-151.0,0.000236,7]
[365532757,1749768647787,-938.79904196,0.00023659,9]
[365532758,1749768647797,-14666.86344728,0.0002366,2]
[365532759,1749768647808,-460.0,0.00023674,4]
[365532760,1749768647818,-294.95,0.00023674,4]
[365532761,1749768647827,-670.18,0.00023674,2]
[365532762,1749768647964,-476.37,0.00023674,4]
[365532763,1749768647974,-460.0,0.00023674,4]
[365532764,1749768647983,-460.0,0.00023674,4]
[365532765,1749768647992,-559.44,0.00023674,4]
[365532766,1749768648001,-230.1251,0.000237,7]
[365532767,1749768648011,-230.1251,0.000237,7]
[365532768,1749768648021,-201.668718,0.000237,7]
[365532769,1749768648030,-201.668718,0.000237,7]
[365532770,1749768648039,-151.0,0.000237,7]
[365532771,1749768648049,-387.984044,0.000237,7]
[365532772,1749768648060,-387.984044,0.000237,7]
[365532773,1749768648069,-3642.80117668,0.000237,2]
[365532774,1749768648078,-963.0,0.00023702,2]
[365532775,1749768648088,-653.0,0.00023702,2]
[365532776,1749768648101,-624.429,0.00023702,2]
[365532777,1749768648111,-460.0,0.00023708,4]
[365532778,1749768648120,-460.0,0.00023708,4]
[365532779,1749768648129,-460.0,0.00023708,4]
[365532780,1749768648139,-460.0,0.00023708,4]
[365532781,1749768648150,-460.0,0.00023708,4]
[365532782,1749768648160,-151.0,0.00023717,7]
[365532783,1749768648169,-151.0,0.00023717,7]
[365532784,1749768648179,-172.839469,0.00023721,7]
[365532785,1749768648189,-172.839469,0.00023721,7]
[365532786,1749768648199,-151.0,0.00023721,7]
[365532787,1749768648208,-460.0,0.00023725,2]
[365532788,1749768648218,-121411.59591787,0.0002376,2]
[365532789,1749768648228,-3536.3359832,0.0002376,2]
[365532790,1749768648238,-685.813553,0.0002376,7]
[365532791,1749768648247,-685.813553,0.0002376,7]
[365532792,1749768648257,-938.79904196,0.00023762,9]
[365532793,1749768648267,-230.1251,0.00023771,7]
[365532794,1749768648276,-230.1251,0.00023771,7]
[365532795,1749768648286,-201.668718,0.00023771,7]
[365532796,1749768648295,-201.668718,0.00023771,7]
[365532797,1749768648305,-151.0,0.00023771,7]
[365532798,1749768648315,-387.984044,0.00023771,7]
[365532799,1749768648325,-387.984044,0.00023771,7]
[365532800,1749768648335,-500.0,0.00023773,2]
[365532801,1749768648344,-500.0,0.00023773,2]
[365532802,1749768648353,-500.0,0.00023773,2]
[365532803,1749768648363,-355.02028707,0.00023773,2]
[365532804,1749768648372,-562.96156801,0.00023773,2]
[365532805,1749768648382,-500.0,0.00023773,2]
[365532806,1749768648392,-500.0,0.00023773,2]
[365532807,1749768648402,-500.0,0.00023773,2]
[365532808,1749768648412,-500.0,0.00023773,2]
[365532809,1749768648422,-500.0,0.00023773,2]
[365532810,1749768648432,-500.0,0.00023773,2]
[365532811,1749768648442,-230.1251,0.00023788,7]
[365532812,1749768648452,-230.1251,0.00023788,7]
[365532813,1749768648462,-201.668718,0.00023788,7]
[365532814,1749768648472,-201.668718,0.00023788,7]
[365532815,1749768648483,-151.0,0.00023788,7]
[365532816,1749768648492,-387.984044,0.00023788,7]
[365532817,1749768648503,-387.984044,0.00023788,7]
[365532818,1749768648513,-11862.37599647,0.0002379,10]
[365532819,1749768648523,-1572.78029097,0.000238,2]
[365532820,1749768648533,-190215.78575376,0.000238,2]
[365532821,1749768648544,-6059.5864915,0.000238,3]
[365532822,1749768648555,-887.11,0.000238,2]
[365532823,1749768648567,-230.1251,0.000238,7]
[365532824,1749768648577,-230.1251,0.000238,7]
[365532825,1749768648587,-151.0,0.000238,7]
[365532826,1749768648597,-685.813553,0.000238,7]
[365532827,1749768648607,-685.813553,0.000238,7]
[365532828,1749768648617,-201.668718,0.000238,7]
[365532829,1749768648627,-201.668718,0.000238,7]
[365532830,1749768648637,-151.0,0.000238,7]
[365532831,1749768648647,-151.0,0.000238,7]
[365532832,1749768648656,-387.984044,0.000238,7]
[365532833,1749768648667,-387.984044,0.000238,7]
[365532834,1749768648676,-151.0,0.000238,7]
[365532835,1749768648686,-151.0,0.000238,7]
[365532836,1749768648695,-612.0,0.00023817,2]
[365532837,1749768648704,-152.259077,0.0002382,7]
[365532838,1749768648714,-151.527928,0.0002382,7]
[365532839,1749768648724,-612.0,0.0002382,2]
[365532840,1749768648734,-176.288464,0.00023859,7]
[365532841,1749768648744,-176.288464,0.00023859,7]
[365532842,1749768648753,-172.0,0.0002386,2]
[365532843,1749768648763,-151.0,0.0002386,7]
[365532844,1749768648772,-151.0,0.0002386,7]
[365532845,1749768648782,-938.79904196,0.00023866,10]
[365532846,1749768648792,-509.265796,0.00023871,7]
[365532847,1749768648802,-509.265796,0.00023871,7]
[365532848,1749768648812,-216.776,0.00023874,2]
[365532849,1749768648822,-151.0,0.000239,8]
[365532850,1749768648832,-151.0,0.000239,9]
[365532851,1749768648841,-151.0,0.000239,7]
[365532852,1749768648851,-1545.374703,0.000239,7]
[365532853,1749768648860,-1545.374703,0.000239,7]
[365532854,1749768648870,-151.0,0.000239,7]
[365532855,1749768648880,-151.0,0.000239,7]
[365532856,1749768648890,-151.0,0.000239,7]
[365532857,1749768648899,-244.011576,0.000239,7]
[365532858,1749768648910,-176.89,0.000239,4]
[365532859,1749768648919,-172.57,0.000239,4]
[365532860,1749768648929,-172.839469,0.000239,7]
[365532861,1749768648939,-172.839469,0.000239,7]
[365532862,1749768648948,-151.0,0.000239,7]
[365532863,1749768648957,-151.0,0.000239,9]
[365532864,1749768648967,-151.0,0.000239,6]
[365532865,1749768648977,-27530.251206,0.000239,2]
[365532866,1749768648986,-151.0,0.000239,6]
[365532867,1749768648995,-208.17,0.000239,4]